bitfinex-derivatives/quotes_SOLF0:USTF0_20240920
["timestamp","ask_amount","ask_price","bid_price","bid_amount"]
[1726794321273,5.16019437,141.64,141.61,10.82]
[1726794321570,10.82,141.66,141.61,10.82]
[1726794321778,5.16065792,141.65,141.61,10.82]
[1726794321972,3.5293,141.64,141.61,10.82]
[1726794322176,6.49552203,141.69,141.61,10.82]
[1726794322369,10.82,141.67,141.61,10.82]
[1726794322572,3.5291,141.65,141.61,14.3497]
[1726794322976,10.82,141.66,141.61,14.3497]
[1726794323677,3.529,141.65,141.61,14.3497]
[1726794324881,3.529,141.65,141.61,10.82]
[1726794325077,3.5292,141.64,141.61,10.82]
[1726794325671,3.5292,141.64,141.61,14.3497]
[1726794327180,3.529,141.65,141.62,3.5296]
[1726794327572,3.5282,141.68,141.64,14.349]
[1726794327773,3.53918057,141.83,141.67,10.82]
[1726794327977,17.33454191,141.74,141.69,10.82]
[1726794328171,3.5272,141.72,141.69,10.82]
[1726794328975,3.5271,141.73,141.7,10.82]
[1726794329182,10.82,141.75,141.7,10.82]
[1726794329382,5.16191169,141.74,141.7,10.82]
[1726794329572,3.527,141.73,141.7,10.82]
[1726794329774,14.34492723,141.75,141.7,10.82]
[1726794329982,5.15867239,141.74,141.7,10.82]
[1726794330182,14.34492723,141.75,141.7,10.82]
[1726794330372,5.15868292,141.74,141.7,10.82]
[1726794330570,14.34492723,141.75,141.7,10.82]
[1726794330774,3.527,141.73,141.7,10.82]
[1726794331881,3.527,141.73,141.69,3.5278]
[1726794332083,3.527,141.73,141.7,14.3476]
[1726794333171,3.527,141.73,141.7,10.82]
[1726794333577,3.527,141.73,141.7,14.3476]
[1726794333882,3.5272,141.72,141.7,10.82]
[1726794336074,3.527,141.73,141.7,14.3476]
[1726794336478,10.82,141.72,141.63,2.7553]
[1726794336682,10.82,141.71,141.64,3.58538173]
[1726794336887,10.82,141.69,141.65,10.82]
[1726794337079,3.5283,141.68,141.65,14.3487]
[1726794337282,10.82,141.68,141.64,14.40538173]
[1726794337683,10.82,141.68,141.64,10.82]
[1726794337983,3.4657396,141.69,141.63,2.7553]
[1726794338181,16.94,141.7,141.63,2.7553]
[1726794338382,5.15860504,141.69,141.63,2.7553]
[1726794338583,16.94,141.7,141.63,2.7553]
[1726794338785,3.5286,141.67,141.64,3.5291]
[1726794339679,3.5286,141.67,141.63,6.2846]
[1726794340789,3.5286,141.67,141.64,3.5291]
[1726794340985,3.5286,141.67,141.63,2.7553]
[1726794341187,3.5150833,141.69,141.63,2.7553]
[1726794341390,22.09783275,141.68,141.58,16.94]
[1726794341589,22.09783275,141.67,141.58,16.94]
[1726794341789,5.15783275,141.66,141.61,3.5297]
[1726794341989,16.94,141.67,141.61,3.5297]
[1726794342192,3.5291,141.65,141.61,3.5297]
[1726794342390,8.72026231,141.66,141.6,3.5301]
[1726794342391,3.5629935,141.66,141.6,3.5301]
[1726794342591,5.15700528,141.65,141.58,16.94]
[1726794342791,5.15700528,141.64,141.58,16.94]
[1726794343294,16.94,141.67,141.58,16.94]
[1726794343493,5.15649795,141.66,141.6,3.5301]
[1726794343691,8.69972058,141.65,141.6,3.5301]
[1726794343884,3.5298,141.62,141.58,3.5305]
[1726794344594,3.5299,141.61,141.58,3.5305]
[1726794344785,3.5299,141.61,141.57,4.9797]
[1726794345187,3.53610149,141.63,141.57,1.449]
[1726794345384,16.94,141.65,141.57,1.449]
[1726794345587,16.94,141.63,141.57,1.449]
[1726794345789,20.48528341,141.63,141.57,1.449]
[1726794346296,20.48528341,141.63,141.57,4.9799]
[1726794347698,3.5302,141.6,141.57,4.9799]
[1726794347904,16.94,141.61,141.55,4.9151]
[1726794348301,16.94,141.57,141.51,3.5324]
[1726794348500,3.50128112,141.56,141.51,3.5324]
[1726794348707,3.5315,141.55,141.51,3.5324]
[1726794349305,3.50128112,141.56,141.48,23.31948533]
[1726794349702,3.50128112,141.56,141.5,3.5325]
[1726794349903,16.94,141.57,141.48,19.7405]
[1726794350104,20.45717516,141.57,141.48,19.7405]
[1726794350404,3.5312,141.56,141.5,16.94]
[1726794350807,3.5312,141.56,141.52,3.5319]
[1726794351008,3.5312,141.56,141.5,16.94]
[1726794351902,3.5309,141.57,141.51,16.94]
[1726794352308,16.94,141.61,141.51,16.94]
[1726794352606,5.15398106,141.6,141.51,16.94]
[1726794352798,3.49873801,141.6,141.51,16.94]
[1726794353309,3.5308,141.58,141.51,16.94]
[1726794353808,3.5308,141.58,141.54,3.5314]
[1726794353997,16.94,141.61,141.51,16.94]
[1726794353998,3.5305,141.59,141.51,16.94]
[1726794354310,16.94,141.63,141.53,16.94]
[1726794354508,3.5303,141.6,141.54,2.8567]
[1726794354698,16.94,141.61,141.54,2.8567]
[1726794355103,3.5309,141.58,141.54,6.3882]
[1726794355507,3.6101259,141.6,141.54,6.3882]
[1726794355699,3.531,141.57,141.54,2.8567]
[1726794356306,3.5313,141.56,141.53,3.5318]
[1726794356706,3.5313,141.56,141.5,16.94]
[1726794356707,3.5314,141.55,141.52,3.532]
[1726794357609,16.94,141.56,141.49,2.8567]
[1726794358000,3.5315,141.55,141.51,3.5322]
[1726794358906,3.5317,141.54,141.51,3.5322]
[1726794359908,3.5317,141.54,141.49,2.8567]
[1726794360608,16.94,141.56,141.49,2.8567]
[1726794360999,3.5313,141.56,141.49,19.7967]
[1726794361201,3.44726574,141.59,141.51,16.94]
[1726794361400,16.94,141.6,141.51,16.94]
[1726794361604,3.55470875,141.59,141.51,16.94]
[1726794361909,3.55470875,141.59,141.54,3.5315]
[1726794361910,3.531,141.57,141.54,3.5315]
[1726794362308,3.55470875,141.59,141.49,2.8567]
[1726794362309,20.49470875,141.59,141.49,19.7967]
[1726794362513,3.5315,141.55,141.49,19.7967]
[1726794362707,16.94,141.57,141.49,19.7967]
[1726794362902,3.5315,141.55,141.52,3.5321]
[1726794364810,3.5313,141.56,141.53,3.5318]
[1726794365011,16.94,141.58,141.49,19.7967]
[1726794365516,16.94,141.58,141.53,3.5317]
[1726794366009,16.94,141.58,141.52,3.532]
[1726794366507,3.5315,141.55,141.51,3.5324]
[1726794366709,16.94,141.57,141.49,2.8567]
[1726794366915,16.94,141.55,141.49,2.8567]
[1726794367614,3.5318,141.54,141.51,3.5324]
[1726794368118,3.5314,141.55,141.52,3.532]
[1726794368314,3.5314,141.55,141.49,2.8567]
[1726794368315,3.5314,141.55,141.49,19.7967]
[1726794368709,7.0572,141.67,141.54,16.94]
[1726794369013,16.94,141.64,141.54,16.94]
[1726794369207,5.15580763,141.63,141.55,2.8106]
[1726794369405,3.53,141.61,141.57,3.5308]
[1726794369912,3.5302,141.6,141.57,3.5308]
[1726794370213,16.94,141.64,141.56,3.531]
[1726794370406,5.15828997,141.63,141.56,3.531]
[1726794370607,22.09802226,141.62,141.55,2.8106]
[1726794370812,16.94,141.62,141.55,2.8106]
[1726794371013,3.5303,141.6,141.55,2.8106]
[1726794371321,16.94,141.64,141.57,3.5308]
[1726794371612,3.5299,141.61,141.55,2.8106]
[1726794371922,16.94,141.64,141.56,3.531]
[1726794372222,3.5303,141.6,141.56,3.531]
[1726794372512,16.94,141.66,141.56,16.94]
[1726794372720,5.1593809,141.65,141.56,16.94]
[1726794373015,22.09905366,141.64,141.56,16.94]
[1726794373217,3.5301,141.61,141.57,3.5307]
[1726794373418,16.94,141.64,141.57,3.5307]
[1726794373614,16.94,141.64,141.55,2.8106]
[1726794373921,16.94,141.62,141.55,2.8106]
[1726794374218,16.94,141.61,141.52,16.94]
[1726794374420,16.94,141.59,141.5,16.94]
[1726794374715,5.15650959,141.58,141.5,16.94]
[1726794375020,3.532,141.53,141.49,20.4727]
[1726794375219,16.94,141.57,141.49,20.4727]
[1726794375424,3.5328,141.5,141.46,6.3903]
[1726794375614,8.3988,141.61,141.46,2.8567]
[1726794375615,16.94,141.54,141.46,2.8567]
[1726794375921,3.5317,141.54,141.47,16.94]
[1726794376315,16.94,141.56,141.47,16.94]
[1726794376510,3.5318,141.54,141.47,16.94]
[1726794376713,11.90830996,141.61,141.46,2.8567]
[1726794376714,16.94,141.57,141.46,2.8567]
[1726794376916,5.15553597,141.56,141.48,16.94]
[1726794377116,16.94,141.57,141.48,16.94]
[1726794377311,5.15564866,141.56,141.48,16.94]
[1726794377522,16.94,141.57,141.48,16.94]
[1726794377722,3.5317,141.54,141.5,3.5325]
[1726794378023,16.94,141.57,141.48,16.94]
[1726794378226,3.5319,141.53,141.5,3.5326]
[1726794378425,3.5319,141.53,141.48,16.94]
[1726794378828,3.5317,141.54,141.5,3.5326]
[1726794379620,16.94,141.57,141.48,16.94]
[1726794380314,22.09534271,141.56,141.46,2.8567]
[1726794380519,5.15534271,141.55,141.46,2.8567]
[1726794380724,3.532,141.53,141.49,3.5327]
[1726794380920,16.94,141.56,141.46,2.8567]
[1726794381127,5.15523417,141.55,141.46,2.8567]
[1726794381425,16.94,141.54,141.46,2.8567]
[1726794381619,16.94,141.52,141.46,2.8567]
[1726794381821,5.15485781,141.51,141.46,2.8567]
[1726794382022,3.5331,141.49,141.46,2.8567]
[1726794382216,16.94,141.54,141.46,2.8567]
[1726794382421,3.532,141.53,141.48,3.5329]
[1726794383318,16.94,141.54,141.47,3.5333]
[1726794383727,3.5325,141.51,141.47,3.5333]
[1726794384325,3.5325,141.51,141.48,3.5331]
[1726794385024,8.5158,141.62,141.4,19.8668]
[1726794385025,16.94,141.5,141.4,19.8668]
[1726794385222,20.45598218,141.5,141.4,19.8668]
[1726794385422,3.5334,141.47,141.43,3.5342]
[1726794386430,20.45598218,141.5,141.4,19.8668]
[1726794387533,5.15229993,141.49,141.42,3.5345]
[1726794387724,20.45598218,141.5,141.42,3.5345]
[1726794388630,16.94,141.48,141.42,3.5345]
[1726794389631,16.94,141.48,141.4,3.5349]
[1726794389826,16.94,141.48,141.38,16.94]
[1726794390025,3.5343,141.44,141.38,16.94]
[1726794390225,3.5343,141.44,141.4,3.535]
[1726794390429,16.94,141.5,141.42,16.94]
[1726794390628,20.4801033,141.52,141.42,16.94]
[1726794390823,19.7251,141.53,141.44,16.94]
[1726794391031,3.48424229,141.54,141.46,16.94]
[1726794391230,148.3987,141.64,141.48,3.533]
[1726794391231,16.94,141.55,141.48,3.533]
[1726794391635,3.5323,141.52,141.48,3.533]
[1726794392135,20.54444953,141.55,141.48,3.533]
[1726794392333,3.5324,141.51,141.48,3.533]
[1726794392835,16.94,141.55,141.48,3.533]
[1726794392836,3.5322,141.52,141.48,3.533]
[1726794393734,3.5325,141.51,141.48,3.533]
[1726794394633,3.5327,141.5,141.46,16.94]
[1726794395236,3.5327,141.5,141.46,20.4734]
[1726794395634,3.5327,141.5,141.46,16.94]
[1726794396634,3.5325,141.51,141.47,3.5332]
[1726794397632,3.5322,141.52,141.46,16.94]
[1726794398027,3.532,141.53,141.49,3.5327]
[1726794398338,16.94,141.55,141.49,3.5327]
[1726794399637,3.5323,141.52,141.49,3.5327]
[1726794399837,3.5323,141.52,141.48,3.533]
[1726794400137,16.94,141.55,141.48,3.533]
[1726794400833,16.94,141.55,141.49,3.5329]
[1726794401433,3.5323,141.52,141.49,3.5329]
[1726794401630,16.94,141.55,141.46,16.94]
[1726794401837,3.5328,141.5,141.46,16.94]
[1726794402032,7.0605,141.6,141.46,16.94]
[1726794402234,22.08947611,141.59,141.49,16.94]
[1726794402438,3.5316,141.55,141.5,1.3905]
[1726794402833,3.5316,141.55,141.52,3.5321]
[1726794403034,3.5314,141.55,141.5,1.3905]
[1726794403539,16.94,141.59,141.52,3.532]
[1726794403738,5.14908569,141.58,141.52,3.532]
[1726794403941,5.14908569,141.57,141.52,3.532]
[1726794404143,3.5314,141.55,141.52,3.532]
[1726794405445,3.5321,141.53,141.5,4.9229]
[1726794405644,16.94,141.57,141.5,1.3905]
[1726794405834,8.73896506,141.56,141.5,1.3905]
[1726794406040,3.5321,141.53,141.5,1.3905]
[1726794406343,3.5905025,141.56,141.5,1.3905]
[1726794406542,3.5324,141.51,141.48,3.5331]
[1726794406744,5.14846179,141.55,141.46,16.94]
[1726794406745,3.49604884,141.54,141.46,16.94]
[1726794406944,5.14779637,141.53,141.46,16.94]
[1726794407138,3.5328,141.5,141.46,16.94]
[1726794407538,16.94,141.55,141.46,16.94]
[1726794407742,5.14761604,141.54,141.46,16.94]
[1726794408049,3.5325,141.51,141.46,16.94]
[1726794408543,3.5325,141.51,141.47,3.5332]
[1726794409147,16.94,141.53,141.45,18.3249]
[1726794409339,5.14538844,141.52,141.45,18.3249]
[1726794409541,16.94,141.53,141.44,1.3926]
[1726794409542,3.5336,141.47,141.44,1.3926]
[1726794409745,16.94,141.53,141.39,141.36]
[1726794409746,16.94,141.49,141.41,16.94]
[1726794409936,5.14455741,141.48,141.41,16.94]
[1726794410136,3.5337,141.46,141.42,3.5344]
[1726794410641,3.5337,141.46,141.41,16.94]
[1726794410642,16.94,141.49,141.41,16.94]
[1726794410836,3.5339,141.45,141.41,20.4747]
[1726794411041,16.94,141.49,141.41,16.94]
[1726794411241,5.14495136,141.48,141.41,16.94]
[1726794411447,3.5339,141.46,141.42,3.5346]
[1726794411947,3.5339,141.45,141.42,3.5346]
[1726794412443,3.5339,141.45,141.41,20.4748]
[1726794413346,16.94,141.49,141.41,16.94]
[1726794413544,5.14502148,141.48,141.41,16.94]
[1726794413749,3.5338,141.46,141.42,3.5346]
[1726794413947,16.94,141.49,141.42,3.5346]
[1726794414153,5.14506182,141.48,141.42,3.5346]
[1726794414349,16.94,141.49,141.42,3.5346]
[1726794414350,3.5338,141.46,141.42,3.5346]
[1726794414745,16.94,141.49,141.42,3.5346]
[1726794414940,5.14497516,141.48,141.42,3.5346]
[1726794415146,5.14497516,141.47,141.42,3.5346]
[1726794415347,5.14497516,141.46,141.41,3.5348]
[1726794415543,3.5341,141.45,141.4,2.7892]
[1726794415748,16.94,141.49,141.41,16.94]
[1726794415945,5.14496831,141.48,141.42,3.5345]
[1726794416150,3.5339,141.46,141.42,3.5345]
[1726794417253,3.5339,141.45,141.42,3.5345]
[1726794417551,3.5339,141.45,141.41,16.94]
[1726794417552,16.94,141.49,141.41,20.4747]
[1726794417751,3.54742523,141.46,141.4,2.7892]
[1726794418752,3.5339,141.45,141.41,3.5349]
[1726794419549,3.5339,141.45,141.42,3.5346]
[1726794419751,3.5339,141.45,141.4,2.7892]
[1726794420155,3.5339,141.45,141.42,3.5345]
[1726794420654,3.5339,141.45,141.4,2.7892]
[1726794420855,3.5342,141.44,141.41,3.5348]
[1726794422552,16.94,141.46,141.38,94.4296254]
[1726794422753,5.14693585,141.45,141.36,20.49141858]
[1726794422959,16.94,141.46,141.33,2.7733]
[1726794423157,5.14763476,141.45,141.33,6.37351346]
[1726794423362,16.94,141.46,141.37,16.94]
[1726794423559,16.94,141.44,141.33,6.29537094]
[1726794423762,5.1502731,141.43,141.35,16.94]
[1726794423960,3.5347,141.42,141.37,3.5357]
[1726794424160,16.94,141.44,141.33,6.29537094]
[1726794424360,16.94,141.42,141.33,6.29537094]
[1726794424559,16.94,141.44,141.35,16.94]
[1726794424758,5.14982433,141.43,141.37,16.94]
[1726794424952,3.5341,141.44,141.39,16.94]
[1726794425151,2.8864,141.46,141.33,6.29537094]
[1726794425152,16.94,141.45,141.33,6.29537094]
[1726794425460,5.14898872,141.44,141.37,16.94]
[1726794425662,3.5343,141.44,141.38,3.5354]
[1726794426154,16.94,141.47,141.4,16.94]
[1726794426360,5.14831365,141.46,141.4,16.94]
[1726794426555,16.94,141.47,141.4,16.94]
[1726794426760,5.14857389,141.46,141.4,16.94]
[1726794426961,20.44301669,141.47,141.38,18.3003]
[1726794427160,16.94,141.45,141.38,18.3003]
[1726794427363,5.14809662,141.46,141.44,16.94]
[1726794427759,3.51150371,141.51,141.44,16.94]
[1726794428059,5.14947987,141.5,141.44,16.94]
[1726794428360,5.14947987,141.49,141.45,3.5339]
[1726794428558,3.47401938,141.51,141.45,3.5339]
[1726794428753,5.15001991,141.5,141.45,3.5339]
[1726794428958,8.68291991,141.49,141.44,3.5341]
[1726794429153,5.15084539,141.48,141.44,3.5341]
[1726794429358,3.5329,141.49,141.42,16.94]
[1726794429562,5.15081501,141.48,141.42,16.94]
[1726794429863,3.5327,141.5,141.42,16.94]
[1726794430060,5.15064887,141.49,141.42,16.94]
[1726794430264,145.05971319,141.66,141.48,16.94]
[1726794430465,3.5313,141.56,141.5,16.94]
[1726794430760,5.15262098,141.55,141.5,16.94]
[1726794431358,16.94,141.61,141.52,16.94]
[1726794431562,5.15401692,141.6,141.52,16.94]
[1726794431762,5.15401692,141.59,141.52,16.94]
[1726794431961,5.15401692,141.58,141.52,16.94]
[1726794432158,5.15401692,141.57,141.52,16.94]
[1726794432369,5.15401692,141.56,141.52,16.94]
[1726794432561,5.15401692,141.55,141.52,16.94]
[1726794432761,16.94,141.6,141.53,3.5319]
[1726794432961,3.5309,141.58,141.53,3.5319]
[1726794433158,5.15542534,141.57,141.52,16.94]
[1726794433368,5.15542534,141.56,141.52,16.94]
[1726794433569,3.5306,141.59,141.54,3.5314]
[1726794434069,5.15556111,141.58,141.54,3.5314]
[1726794434267,5.15556111,141.57,141.54,3.5314]
[1726794434465,5.15556111,141.56,141.53,3.5318]
[1726794434662,5.15556111,141.55,141.5,16.94]
[1726794434871,16.94,141.6,141.5,16.94]
[1726794435065,5.15548298,141.59,141.5,16.94]
[1726794435271,5.15548298,141.58,141.5,16.94]
[1726794435569,5.15548298,141.57,141.5,20.4726]
[1726794435768,22.09548298,141.56,141.5,3.5326]
[1726794435970,5.15548298,141.55,141.5,3.5326]
[1726794436168,5.15548298,141.54,141.51,3.5323]
[1726794436373,5.15548298,141.53,141.51,3.5323]
[1726794436574,3.5315,141.55,141.51,3.5323]
[1726794436765,5.15438052,141.54,141.51,3.5323]
[1726794436961,5.15438052,141.53,141.51,3.5323]
[1726794437171,3.5311,141.57,141.52,3.5321]
[1726794437469,5.15366945,141.56,141.51,16.94]
[1726794437667,16.94,141.6,141.51,20.4722]
[1726794437866,16.94,141.6,141.49,16.94]
[1726794437867,5.15352954,141.55,141.49,16.94]
[1726794438074,5.15352954,141.54,141.48,19.7321]
[1726794438271,8.68552954,141.53,141.49,3.5327]
[1726794438468,5.15352954,141.52,141.49,3.5327]
[1726794438663,3.532,141.53,141.48,23.265]
[1726794438871,8.68507956,141.52,141.48,2.7921]
[1726794439062,16.94,141.54,141.48,2.7921]
[1726794439268,3.62105012,141.56,141.48,2.7921]
[1726794439269,5.15293063,141.53,141.48,2.7921]
[1726794439467,5.15293063,141.52,141.48,2.7921]
[1726794439779,5.15293063,141.51,141.48,2.7921]
[1726794440079,16.94,141.54,141.4,229.0]
[1726794440277,8.68495959,141.53,141.46,16.94]
[1726794440479,5.15285959,141.52,141.48,3.533]
[1726794440677,3.5321,141.53,141.48,3.533]
[1726794440874,5.15278151,141.52,141.48,3.533]
[1726794441273,8.68498151,141.52,141.48,3.533]
[1726794441470,5.15278151,141.51,141.47,3.5334]
[1726794441670,3.5326,141.51,141.46,16.94]
[1726794441873,5.15278151,141.5,141.46,16.94]
[1726794442072,16.94,141.54,141.47,3.5333]
[1726794442274,5.15255304,141.53,141.47,3.5333]
[1726794442476,3.5324,141.51,141.47,3.5333]
[1726794442675,5.15255304,141.5,141.47,3.5333]
[1726794442875,16.94,141.54,141.46,16.94]
[1726794443074,3.5324,141.51,141.46,16.94]
[1726794443277,5.15245454,141.5,141.46,16.94]
[1726794443477,5.15245454,141.49,141.44,2.8462]
[1726794443673,16.94,141.52,141.44,2.8462]
[1726794443884,5.15190397,141.51,141.44,2.8462]
[1726794444176,22.09190397,141.5,141.43,141.38]
[1726794444381,5.15190397,141.49,141.43,141.38]
[1726794444574,5.15190397,141.48,141.43,141.38]
[1726794444771,5.15190397,141.47,141.41,16.94]
[1726794444977,5.15190397,141.46,141.41,16.94]
[1726794445279,5.15190397,141.45,141.41,16.94]
[1726794445476,20.50687362,141.5,141.41,16.94]
[1726794445677,5.14990083,141.49,141.41,16.94]
[1726794445879,5.14990083,141.48,141.41,16.94]
[1726794446080,8.68330083,141.47,141.43,3.5342]
[1726794446280,5.14990083,141.46,141.43,3.5342]
[1726794446584,5.14990083,141.46,141.41,16.94]
[1726794446875,5.14990083,141.45,141.41,16.94]
[1726794447080,20.50687362,141.5,141.41,16.94]
[1726794447281,5.14977684,141.44,141.41,20.4747]
[1726794447481,3.5339,141.46,141.41,16.94]
[1726794447682,5.14991902,141.45,141.41,16.94]
[1726794447884,5.14991902,141.44,141.42,3.5346]
[1726794448073,16.94,141.5,141.41,16.94]
[1726794448282,5.14984617,141.49,141.41,16.94]
[1726794448485,3.5336,141.46,141.41,16.94]
[1726794448686,5.14984617,141.45,141.41,16.94]
[1726794448983,5.14984617,141.44,141.41,16.94]
[1726794449189,3.5336,141.46,141.41,16.94]
[1726794449387,5.14973033,141.45,141.41,16.94]
[1726794449574,5.14973033,141.44,141.43,3.5344]
[1726794450286,5.14973033,141.44,141.43,20.4744]
[1726794450486,16.94,141.5,141.39,2.9179]
[1726794450682,16.94,141.48,141.39,6.44078369]
[1726794450882,5.14981547,141.47,141.4,16.94]
[1726794451080,8.68361547,141.46,141.4,16.94]
[1726794451275,5.14981547,141.45,141.4,16.94]
[1726794451480,5.14981547,141.44,141.4,16.94]
[1726794451681,3.5329,141.49,141.43,16.94]
[1726794451987,5.1503763,141.48,141.43,16.94]
[1726794452189,5.1503763,141.47,141.44,3.5341]
[1726794452490,5.1503763,141.46,141.44,3.5341]
[1726794452692,3.5333,141.48,141.44,3.5341]
[1726794452885,5.15104801,141.47,141.44,3.5341]
[1726794453083,5.15104801,141.46,141.44,3.5341]
[1726794453284,3.5333,141.48,141.44,3.5341]
[1726794453478,5.15097483,141.47,141.44,3.5341]
[1726794453690,5.15097483,141.46,141.44,3.5341]
[1726794454083,3.5333,141.48,141.44,3.5341]
[1726794454287,8.68491079,141.47,141.43,3.5343]
[1726794454486,5.15151079,141.46,141.42,16.94]
[1726794454685,5.15151079,141.45,141.42,16.94]
[1726794454985,16.94,141.5,141.42,20.4744]
[1726794455191,5.15152853,141.49,141.42,20.4744]
[1726794455385,3.534,141.45,141.41,3.5347]
[1726794455586,5.15152853,141.44,141.41,3.5347]
[1726794455785,3.534,141.45,141.41,3.5347]
[1726794455994,5.15105582,141.44,141.42,3.5346]
[1726794456186,3.534,141.45,141.42,3.5346]
[1726794456382,5.15069416,141.44,141.42,3.5346]
[1726794456592,3.5337,141.46,141.42,3.5346]
[1726794456889,5.15068961,141.45,141.42,3.5346]
[1726794457188,5.15117066,141.44,141.42,3.5346]
[1726794457381,3.5337,141.46,141.42,3.5346]
[1726794457780,5.15263318,141.45,141.42,3.5346]
[1726794457985,5.15263318,141.44,141.43,3.5344]
[1726794458181,5.15263318,141.49,141.43,3.5344]
[1726794458386,5.15263318,141.48,141.43,3.5344]
[1726794458591,3.5339,141.45,141.4,16.94]
[1726794458792,5.15263318,141.44,141.4,16.94]
[1726794459389,5.15263318,141.44,141.41,3.5347]
[1726794459791,5.15263318,141.44,141.4,16.94]
[1726794460295,20.47253256,141.5,141.42,16.94]
[1726794460296,5.15263318,141.45,141.42,16.94]
[1726794460586,20.47253256,141.5,141.43,3.5344]
[1726794460791,3.5337,141.46,141.42,16.94]
[1726794460987,5.153121,141.45,141.42,20.4745]
[1726794463389,5.153121,141.45,141.44,20.4741]
[1726794465392,16.94,141.52,141.46,3.5336]
[1726794465582,5.15333348,141.51,141.46,16.94]
[1726794465786,5.15333348,141.5,141.46,16.94]
[1726794465983,5.15333348,141.49,141.47,16.94]
[1726794466187,19.698,141.56,141.47,16.94]
[1726794466188,5.15333348,141.55,141.47,16.94]
[1726794466490,5.15441536,141.54,141.49,16.94]
[1726794466693,5.15441536,141.53,141.51,3.5322]
[1726794466892,5.15441536,141.54,141.51,20.4722]
[1726794467093,5.15441536,141.53,141.51,16.94]
[1726794467394,3.5323,141.52,141.47,16.94]
[1726794467587,8.68750573,141.52,141.47,16.94]
[1726794467789,3.532,141.53,141.49,3.5329]
[1726794467989,5.15520573,141.55,141.46,6.48258508]
[1726794468188,5.15520573,141.54,141.47,16.94]
[1726794468393,16.94,141.56,141.47,16.94]
[1726794468394,5.15520573,141.53,141.47,16.94]
[1726794468691,5.15520573,141.52,141.47,16.94]
[1726794468992,5.15520573,141.51,141.46,2.8671]
[1726794469198,5.15520573,141.5,141.46,2.8671]
[1726794469497,5.15520573,141.49,141.46,2.8671]
[1726794469693,5.15520573,141.48,141.46,2.8671]
[1726794469894,16.94,141.54,141.46,2.8671]
[1726794470094,5.15364535,141.53,141.46,2.8671]
[1726794470296,3.5324,141.51,141.46,6.4006]
[1726794470501,5.15364535,141.5,141.46,6.4006]
[1726794470797,5.15364535,141.49,141.46,6.4006]
[1726794470997,16.94,141.54,141.46,2.8671]
[1726794471195,5.15359209,141.48,141.44,3.534]
[1726794471386,16.94,141.51,141.42,16.94]
[1726794471593,5.15371723,141.5,141.46,3.5336]
[1726794471793,3.5333,141.48,141.44,16.94]
[1726794472698,3.5333,141.48,141.44,20.4741]
[1726794472899,3.5333,141.48,141.44,16.94]
[1726794473196,5.15358311,141.47,141.45,3.5339]
[1726794473388,3.533,141.49,141.45,3.5339]
[1726794473591,5.15332317,141.48,141.45,3.5339]
[1726794473793,5.15332317,141.47,141.45,3.5339]
[1726794474097,3.533,141.49,141.45,3.5339]
[1726794474392,5.15317706,141.48,141.45,3.5339]
[1726794474595,5.15317706,141.47,141.45,3.5339]
[1726794474793,3.533,141.49,141.45,3.5339]
[1726794474994,5.15320207,141.48,141.45,3.5339]
[1726794475198,5.15320207,141.47,141.45,3.5339]